fUSD/lending_fUSD_20250401
["ID","MTS","AMOUNT","RATE_DAILY","PERIOD"]
[356962590,1743499949479,-500.0,0.00054794,120]
[356962591,1743499949503,-24041.85202382,0.00055,120]
[356962592,1743499950394,-25000.0,0.00055,120]
[356962593,1743499951333,-25000.0,0.00055,120]
[356962631,1743501031411,1499.15,0.00013699,2]
[356962633,1743501031748,1499.15,0.00013699,2]
[356962634,1743501031885,-250.0,0.00017,2]
[356962635,1743501031896,-350.0,0.00017425,12]
[356962636,1743501031907,-350.0,0.000187,12]
[356962637,1743501031918,-350.0,0.000187,12]
[356962638,1743501031927,-158.7,0.00026849,2]
[356962639,1743501031938,-158.7,0.00042583,2]
[356962640,1743501031949,-333.824,0.0004264,2]
[356962641,1743501031958,-216.5305851,0.000454,2]
[356962642,1743501031968,-255.78,0.000455,2]
[356962643,1743501031978,-265.93,0.00052721,2]
[356962644,1743501031987,-194.7113605,0.0005298,30]
[356962645,1743501031996,-1146.05467875,0.00053852,2]
[356962646,1743501032010,-7960.48382933,0.00053852,2]
[356962647,1743501032044,-78.80149192,0.00053852,2]
[356962648,1743501032054,-1107.88092044,0.00054,120]
[356962649,1743501032143,1499.15,0.00013699,2]
[356962650,1743501032158,-3000.0,0.00054,120]
[356962651,1743501032206,-2039.40212491,0.00054,120]
[356962652,1743501032217,-738.53790114,0.00054,120]
[356962653,1743501032229,-541.54581457,0.00054,120]
[356962658,1743501032566,1499.15,0.00013699,2]
[356962665,1743501033020,1499.15,0.00013699,2]
[356962666,1743501033429,1499.15,0.00013699,2]
[356962667,1743501033801,1499.15,0.00013699,2]
[356962668,1743501034136,1499.15,0.00013699,2]
[356962669,1743501034544,1499.15,0.00013699,2]
[356962670,1743501035054,1499.15,0.00013699,2]
[356962671,1743501035519,1499.15,0.00013699,2]
[356962672,1743501036026,1499.15,0.00013699,2]
[356962673,1743501037337,1499.15,0.00013699,2]
[356962681,1743501037819,-126758.02573086,0.00054,120]
[356962682,1743501037924,-871.7117907,0.00054,120]
[356962683,1743501037936,-55486.61178126,0.00054,120]
[356962684,1743501037946,-1095.14944174,0.00054,120]
[356962685,1743501037977,-37021.3131722,0.00054,120]
[356962686,1743501037988,-98820.93693976,0.00054,120]
[356962687,1743501038225,1499.15,0.00013699,2]
[356962688,1743501038707,1499.15,0.00013699,2]
[356962689,1743501039110,1499.15,0.00013699,2]
[356962690,1743501039547,1499.15,0.00013699,2]
[356962701,1743501040152,1499.15,0.00013699,2]
[356962702,1743501040340,-504.75002726,0.00054,120]
[356962703,1743501040393,-4000.0,0.00054,120]
[356962704,1743501040448,-259.32520555,0.00054,120]
[356962709,1743501041097,1499.15,0.00013699,2]
[356962710,1743501041655,1499.2290036,0.00013699,2]
[356962720,1743501043212,-67754.80914961,0.00054,120]
[356962721,1743501043222,-156.04973192,0.00054102,120]
[356962722,1743501043231,-151.15,0.00054202,120]
[356962723,1743501043241,-156.0497318,0.00054247,120]
[356962724,1743501043250,-156.0497318,0.00054392,120]
[356962725,1743501043259,-250.0,0.00054639,120]
[356962726,1743501043269,-152.52,0.000547,49]
[356962727,1743501043278,-150.0,0.00054793,9]
[356962728,1743501043287,-500.0,0.00054794,120]
[356962729,1743501043297,-500.0,0.00054794,120]
[356962730,1743501043306,-500.0,0.00054794,120]
[356962731,1743501043316,-500.0,0.00054794,120]
[356962732,1743501043325,-193.20197961,0.00054794,120]
[356962733,1743501043335,-160.587,0.00054794,103]
[356962734,1743501043344,-351.1517741,0.00054794,120]
[356962735,1743501043354,-500.0,0.00054794,2]
[356962736,1743501043363,-500.0,0.00054794,120]
[356962737,1743501043373,-500.0,0.00054794,120]
[356962738,1743501043382,-528.31,0.00054794,120]
[356962739,1743501043392,-500.0,0.00054794,120]
[356962740,1743501043401,-300.0,0.000548,20]
[356962741,1743501043411,-2095.26853294,0.0005489,15]
[356962742,1743501043420,-2830.65237823,0.0005489,2]
[356962765,1743501044118,-0.70378214,0.0005489,2]
[356962776,1743501045938,-151.7,0.00053678,120]
[356962777,1743501045948,-156.0497318,0.00054537,120]
[356962778,1743501045958,-13259.72183963,0.0005489,2]
[356962779,1743501045967,-6313.0612,0.0005489,2]
[356962780,1743501045978,-2220.6166,0.0005489,2]
[356962781,1743501045987,-9295.4395,0.0005489,2]
[356962782,1743501045997,-19991.104,0.0005489,2]
[356962783,1743501046008,-1722.6595,0.000549,2]
[356962784,1743501046017,-461.66571738,0.000549,26]
[356962785,1743501046026,-3069.0006,0.000549,120]
[356962786,1743501046036,-700.0,0.000549,20]
[356962787,1743501046045,-151.61,0.0005498,120]
[356962788,1743501046055,-265.93,0.00054985,2]
[356962789,1743501046064,-500.0,0.00054989,120]
[356962790,1743501046074,-371.85420352,0.00054989,120]
[356962791,1743501046083,-943.37,0.00054989,12]
[356962792,1743501046094,-150.0,0.00054989,120]
[356962793,1743501046105,-1170.94,0.00054989,30]
[356962794,1743501046117,-310.94689924,0.00054989,120]
[356962795,1743501046128,-317.42375057,0.00054989,120]
[356962796,1743501046141,-500.0,0.00054989,120]
[356962797,1743501046152,-4491.75,0.00054989,120]
[356962798,1743501046164,-500.0,0.00054989,120]
[356962799,1743501046176,-500.0,0.00054989,120]
[356962800,1743501046186,-500.0,0.00054989,120]
[356962801,1743501046196,-500.0,0.00054989,120]
[356962802,1743501046206,-500.0,0.00054989,120]
[356962803,1743501046218,-500.0,0.00054989,120]
[356962804,1743501046228,-500.0,0.00054989,120]
[356962805,1743501046240,-500.0,0.00054989,7]
[356962806,1743501046251,-500.0,0.00054989,120]
[356962807,1743501046262,-500.0,0.00054989,120]
[356962808,1743501046273,-500.0,0.00054989,120]
[356962809,1743501046284,-500.0,0.00054989,120]
[356962810,1743501046294,-500.0,0.00054989,120]
[356962811,1743501046305,-500.0,0.00054989,2]
[356962812,1743501046315,-500.0,0.00054989,7]
[356962813,1743501046327,-500.0,0.00054989,120]
[356962814,1743501046338,-500.0,0.00054989,120]
[356962815,1743501046349,-1458.82,0.00054989,120]
[356962816,1743501046360,-2857.98339951,0.00054989,7]
[356962817,1743501046374,-536.27981719,0.00054989,7]
[356962818,1743501046388,-40185.6867833,0.00054989,7]
[356962819,1743501046399,-362.21701181,0.00054989,120]
[356962820,1743501046410,-500.0,0.00054989,120]
[356962821,1743501046421,-500.0,0.00054989,120]
[356962822,1743501046431,-500.0,0.00054989,120]
[356962823,1743501046441,-1379.49,0.00054989,120]
[356962824,1743501046451,-500.0,0.00054989,120]
[356962825,1743501046461,-500.0,0.00054989,120]
[356962826,1743501046471,-500.0,0.00054989,120]
[356962827,1743501046483,-500.0,0.00054989,120]
[356962828,1743501046495,-841.89,0.00054989,2]
[356962829,1743501046506,-500.0,0.00054989,120]
[356962830,1743501046517,-500.0,0.00054989,120]
[356962831,1743501046529,-500.0,0.00054989,120]
[356962832,1743501046539,-500.0,0.00054989,120]
[356962833,1743501046550,-500.0,0.00054989,120]
[356962834,1743501046562,-500.0,0.00054989,120]
[356962835,1743501046573,-500.0,0.00054989,100]
[356962836,1743501046585,-500.0,0.00054989,120]
[356962837,1743501046595,-500.0,0.00054989,120]
[356962838,1743501046607,-500.0,0.00054989,120]
[356962839,1743501046618,-500.0,0.00054989,120]
[356962840,1743501046633,-500.0,0.00054989,120]
[356962841,1743501046645,-500.0,0.00054989,120]
[356962842,1743501046656,-500.0,0.00054989,2]
[356962843,1743501046667,-630.06912383,0.00054989,120]
[356962844,1743501046678,-500.0,0.00054989,120]
[356962845,1743501046689,-54911.57408106,0.0005499,4]
[356962872,1743501356368,-1000.0,0.000498,30]
[356962874,1743501360237,-303.80857868,0.000498,30]
[356962875,1743501360264,-156.0497318,0.00052143,120]
[356962876,1743501360290,-156.0497318,0.00052672,120]
[356962877,1743501360315,-189.99793257,0.0005298,30]
[356962878,1743501360340,-156.0497318,0.000532,120]
[356962879,1743501360364,-38.04429335,0.00053729,120]
[356962881,1743501372204,-118.00543845,0.00053729,120]
[356962882,1743501372228,-150.0,0.00053729,120]
[356962883,1743501372254,-731.99456155,0.00054,120]
[356962897,1743502236229,-152.87,0.00026849,2]
[356962898,1743502236239,-350.0,0.00028192,12]
[356962899,1743502236249,-350.0,0.00029534,12]
[356962900,1743502236259,-350.0,0.00038038,12]
[356962901,1743502236268,-4474.0,0.000471,5]
[356962902,1743502236277,-368.97,0.00050539,2]
[356962903,1743502236286,-1000.0,0.0005154,20]
[356962904,1743502236296,-411.65215967,0.000518,2]
[356962905,1743502236307,-1018.96473832,0.000519,15]
[356962906,1743502236317,-41111.99533548,0.00052,2]
[356962917,1743502238086,-90140.39119091,0.00052,2]
[356962918,1743502238201,-150.0,0.000518,2]
[356962919,1743502238212,-32747.61347361,0.00052,2]
[356962920,1743502238223,-160.587,0.00052,94]
[356962921,1743502238234,-1292.78,0.00052455,2]
[356962922,1743502238245,-1018.96473832,0.00052456,15]
[356962923,1743502238255,-368.97,0.00052803,2]
[356962924,1743502238266,-250.0,0.00052827,120]
[356962925,1743502238277,-189.99793257,0.0005298,30]
[356962926,1743502238288,-1018.96473832,0.00053011,15]
[356962927,1743502238298,-3000.0,0.000535,120]
[356962928,1743502238312,-155.90118542,0.0005354,120]
[356962929,1743502238322,-1018.96473832,0.00053567,15]
[356962930,1743502238332,-1000.0,0.00053816,120]
[356962931,1743502238342,-155.90118542,0.00053867,120]
[356962932,1743502238352,-326.5044,0.0005389,2]
[356962933,1743502238362,-7836.3483,0.0005389,2]
[356962934,1743502238373,-1048.2899,0.000539,2]
[356962935,1743502238383,-300.0,0.000539,19]
[356962936,1743502238393,-5000.0,0.000539,120]
[356962937,1743502238402,-521.34310914,0.000539,26]
[356962938,1743502238413,-2800.85280892,0.000539,15]
[356962939,1743502238422,-27103.7533227,0.0005399,4]
[356962940,1743502238432,-108221.474957,0.0005399,4]
[356962941,1743502238442,-151.61,0.0005399,120]
[356962942,1743502238452,-150.0,0.00053999,120]
[356962943,1743502238461,-206.22764761,0.00054,62]
[356962944,1743502238471,-707.23552753,0.00054,62]
[356962945,1743502238481,-301134.35543845,0.00054,120]
[356962946,1743502238491,-243591.99391256,0.00054,120]
[356962947,1743502238503,-1010.11679554,0.00054,120]
[356962948,1743502238516,-1319.41034812,0.00054,120]
[356962950,1743502240457,-150.0,0.00052,2]
[356962951,1743502240467,-2535.31124165,0.00054,120]
[356962969,1743502243497,-150.0,0.0005298,30]
[356962970,1743502243507,-4262.08368588,0.00054,120]
[356962971,1743502243547,-0.54542485,0.00054,120]
[356962975,1743502246139,-250.0,0.00037589,2]
[356962976,1743502246149,-30500.72570476,0.00054,120]
[356962977,1743502246178,-8988.63146947,0.00054,120]
[356962978,1743502246201,-3769.40000012,0.00054,120]
[356962979,1743502246213,-102069.24718603,0.00054,120]
[356962980,1743502246234,-538.2,0.00054,120]
[356962981,1743502246245,-14474.14633253,0.00054,120]
[356962982,1743502246258,-36365.76833271,0.00054,120]
[356962983,1743502246345,-594.39914268,0.00054,120]
[356963057,1743503004476,-214.0,0.00026848,2]
[356963058,1743503018454,-162.07,0.00026849,2]
[356963059,1743503018479,-175504.175971,0.00026849,2]
[356963061,1743503045292,1154.7724,0.00026749,2]
[356963063,1743503108694,89540.5865044,0.00015,2]
[356963064,1743503108785,2123.45688955,0.00024,2]
[356963066,1743503110415,14134.75477728,0.000264,2]
[356963067,1743503130382,2318.33486882,0.00021,2]
[356963068,1743503136433,730.50571968,0.00019,2]
[356963073,1743503161615,4342.73772183,0.00026,2]
[356963087,1743503266471,11287.85029719,0.0002501,2]
[356963088,1743503270708,14672.66412011,0.0002,4]
[356963089,1743503280420,549.35725585,0.0001,2]
[356963090,1743503282426,2556.12922689,0.0002,4]
[356963091,1743503284424,32041.0961894,0.00015,2]
[356963095,1743503326905,163.11566527,0.00028,60]
[356963096,1743503402595,350.0,0.00015,12]
[356963105,1743503407806,-11654.67,0.0001499,2]
[356963106,1743503407832,-320.58115737,0.00014999,2]
[356963107,1743503407857,-326.43138797,0.00014999,2]
[356963108,1743503407883,-164.0,0.00014999,2]
[356963109,1743503407908,-332177.86376828,0.00015,2]
[356963110,1743503422237,-12465.68254534,0.00015,2]
[356963119,1743503432136,-350.0,0.00016499,12]
[356963121,1743503432146,-350.0,0.00021218,12]
[356963122,1743503432155,-512.17759608,0.00025,2]
[356963124,1743503432245,-2413.0644918,0.00025,2]
[356963125,1743503432254,-1023.60271605,0.00025,2]
[356963126,1743503432263,-160.83911461,0.00025,2]
[356963127,1743503432273,-3248.67600916,0.000251,2]
[356963128,1743503432282,-576.51521802,0.0002599,2]
[356963129,1743503432292,-4433.65,0.00026,2]
[356963130,1743503432301,-3266.79006616,0.000275,2]
[356963131,1743503432311,-162.18215288,0.00030629,2]
[356963132,1743503432320,-175.66268597,0.0003121,2]
[356963133,1743503432331,-21140.82855806,0.00033785,2]
[356963134,1743503432340,-299.46600187,0.00035,30]
[356963135,1743503432350,-5066.8138,0.00036986,10]
[356963136,1743503432360,-749.85174617,0.00037,5]
[356963137,1743503432370,-167.42,0.0003751,2]
[356963138,1743503432380,-150.99,0.0003751,2]
[356963139,1743503432389,-4681.27,0.0003751,2]
[356963140,1743503432401,-162.07,0.00037863,2]
[356963141,1743503432412,-3741.06,0.00037863,2]
[356963142,1743503432422,-951.67,0.00037863,2]
[356963143,1743503432431,-4191.82978795,0.00042059,2]
[356963144,1743503432442,-381.12,0.00042059,2]
[356963145,1743503432452,-1000.0,0.0004254,10]
[356963146,1743503432461,-332.45115318,0.0004276,4]
[356963147,1743503432471,-165.08,0.0004276,2]
[356963148,1743503432481,-573.0,0.00042761,2]
[356963149,1743503432491,-1479.0,0.00042761,2]
[356963150,1743503432501,-789.0,0.00042761,2]
[356963151,1743503432510,-1275.0,0.00042761,2]
[356963152,1743503432520,-543.0,0.00042761,2]
[356963153,1743503432529,-1433.0,0.00042761,2]
[356963154,1743503432539,-908.0,0.00042761,2]
[356963155,1743503432548,-4092.0,0.00042761,2]
[356963156,1743503432558,-1117.0,0.00042761,2]
[356963157,1743503432568,-219.762,0.00042761,2]
[356963158,1743503432578,-643.738,0.00042761,2]
[356963159,1743503432587,-1283.0,0.00042761,2]
[356963160,1743503432597,-172.514,0.00042761,65]
[356963161,1743503432607,-814.29,0.00043111,2]
[356963163,1743503432616,-2000.0,0.00043456,4]
[356963165,1743503432625,-500.0,0.00043836,120]
[356963167,1743503432635,-500.0,0.00043836,120]
[356963169,1743503432645,-500.0,0.00043836,120]
[356963175,1743503432860,-500.0,0.00043836,120]
[356963176,1743503432870,-547.09279813,0.00043836,120]
[356963177,1743503432880,-597.38160919,0.0004399,30]
[356963178,1743503432890,-1715.0,0.00044294,2]
[356963179,1743503432900,-656.64302303,0.00044449,2]
[356963180,1743503432910,-200.0,0.00045012,2]
[356963181,1743503432919,-150.01,0.00045051,2]
[356963182,1743503432929,-1650.89,0.00045308,2]
[356963183,1743503432939,-161.27,0.00045323,2]
[356963184,1743503432948,-1000.0,0.00045357,10]
[356963185,1743503432958,-814.29,0.00045375,2]
[356963186,1743503432968,-1000.0,0.00045409,2]
[356963187,1743503432978,-178.43,0.00045514,120]
[356963188,1743503432988,-300.0,0.00045515,2]
[356963189,1743503432998,-1009.59,0.0004563,2]
[356963190,1743503433007,-573.0,0.00045761,2]
[356963191,1743503433017,-1365.0,0.00045761,2]
[356963192,1743503433027,-789.0,0.00045761,2]
[356963193,1743503433036,-1273.0,0.00045761,2]
[356963194,1743503433047,-543.0,0.00045761,2]
[356963195,1743503433057,-1433.0,0.00045761,2]
[356963196,1743503433067,-908.0,0.00045761,2]
[356963197,1743503433077,-4088.0,0.00045761,2]
[356963198,1743503433086,-267.899,0.00045761,2]
[356963199,1743503433096,-151.0,0.00045761,2]
[356963200,1743503433106,-643.0,0.00045761,2]
[356963201,1743503433115,-1283.0,0.00045761,2]
[356963202,1743503433124,-185.99,0.00045898,2]
[356963203,1743503433134,-3055.78478241,0.000459,119]
[356963204,1743503433143,-3271.21718643,0.00045966,2]
[356963205,1743503433153,-226.22301054,0.00046,120]
[356963206,1743503433163,-779.10706379,0.00046,60]
[356963207,1743503433173,-26809.30513229,0.00046,120]
[356963208,1743503433182,-153.0,0.00046027,90]
[356963209,1743503433192,-153.0,0.00046027,90]
[356963210,1743503433201,-153.0,0.00046027,90]
[356963211,1743503433211,-153.0,0.00046027,90]
[356963212,1743503433220,-153.0,0.00046027,90]
[356963213,1743503433230,-153.0,0.00046027,90]
[356963214,1743503433240,-153.0,0.00046027,90]
[356963215,1743503433249,-153.0,0.00046027,90]
[356963216,1743503433262,-153.0,0.00046027,90]
[356963217,1743503433272,-153.0,0.00046027,90]
[356963218,1743503433281,-153.0,0.00046027,90]
[356963219,1743503433291,-153.0,0.00046027,90]
[356963220,1743503433301,-153.0,0.00046027,90]
[356963221,1743503433311,-153.0,0.00046027,90]
[356963222,1743503433320,-153.0,0.00046027,90]
[356963223,1743503433330,-153.0,0.00046027,90]
[356963224,1743503433345,-153.0,0.00046027,90]
[356963225,1743503433356,-153.0,0.00046027,90]
[356963226,1743503433366,-153.0,0.00046027,90]
[356963227,1743503433376,-153.0,0.00046027,90]
[356963228,1743503433385,-153.0,0.00046027,90]
[356963229,1743503433395,-153.0,0.00046027,90]
[356963230,1743503433409,-153.0,0.00046027,90]
[356963231,1743503433419,-153.0,0.00046027,90]
[356963232,1743503433428,-153.0,0.00046027,90]
[356963233,1743503433438,-153.0,0.00046027,90]
[356963234,1743503433448,-153.0,0.00046027,90]
[356963235,1743503433457,-153.0,0.00046027,90]
[356963236,1743503433466,-153.0,0.00046027,90]
[356963237,1743503433475,-153.0,0.00046027,90]
[356963238,1743503433486,-153.0,0.00046027,90]
[356963239,1743503433495,-153.0,0.00046027,90]
[356963240,1743503433504,-153.0,0.00046027,90]
[356963241,1743503433513,-153.0,0.00046027,90]
[356963242,1743503433522,-153.0,0.00046027,90]
[356963243,1743503433531,-153.0,0.00046027,90]
[356963244,1743503433540,-1921.64,0.00046399,2]
[356963245,1743503433549,-501.93285497,0.00047245,10]
[356963246,1743503433557,-500.0,0.00047245,2]
[356963247,1743503433566,-1959.1472159,0.00047495,120]
[356963248,1743503433577,-814.29,0.00047639,2]
[356963249,1743503433586,-1000.0,0.00048173,10]
[356963250,1743503433596,-763.77,0.00048218,2]
[356963251,1743503433605,-1852.42,0.0004867,120]
[356963252,1743503433615,-1888.06036931,0.0004868,15]
[356963253,1743503433624,-3033.95912038,0.0004869,15]
[356963254,1743503433634,-38651.80657722,0.000487,120]
[356963255,1743503433643,-623.75446103,0.00048773,10]
[356963256,1743503433653,-41822.2968287,0.0004878,4]
[356963257,1743503433663,-5304.97426256,0.0004878,4]
[356963258,1743503433672,-2652.48713128,0.0004879,4]
[356963259,1743503433683,-23872.3841815,0.0004879,4]
[356963260,1743503433693,-151.54,0.0004879,2]
[356963261,1743503433702,-506.29451858,0.00048799,7]
[356963262,1743503433712,-499999.0,0.000488,120]
[356963263,1743503433721,-287794.74607861,0.000488,120]
[356963264,1743503433734,-34016.66704485,0.000488,120]
[356963265,1743503433744,-359.50637832,0.000488,30]
[356963266,1743503433754,-500.0,0.000488,17]
[356963267,1743503433763,-20249.87645605,0.000488,7]
[356963268,1743503433773,-162.07,0.00048877,2]
[356963269,1743503433783,-1000.0,0.000489,17]
[356963270,1743503433793,-150.0,0.0004899,120]
[356963271,1743503433802,-150.0,0.00049,2]
[356963272,1743503433812,-1888.06036924,0.0004926,15]
[356963273,1743503433822,-3033.95912038,0.00049269,15]
[356963274,1743503433832,-161.66,0.00049295,2]
[356963275,1743503433842,-181.77,0.00049313,120]
[356963276,1743503433852,-23900.0,0.00049465,2]
[356963277,1743503433862,-1303.80857868,0.000498,30]
[356963278,1743503433872,-1888.06036924,0.0004984,15]
[356963279,1743503433881,-3033.95912038,0.00049848,15]
[356963280,1743503433891,-2685.31124165,0.0004987,5]
[356963281,1743503433902,-1600.0,0.000499,18]
[356963282,1743503433911,-155.90118542,0.000499,120]
[356963283,1743503433921,-155.90118542,0.000499,120]
[356963284,1743503433930,-155.90118542,0.000499,120]
[356963285,1743503433940,-814.29,0.00049903,2]
[356963286,1743503433950,-500.0,0.00049961,10]
[356963287,1743503433963,-151.54,0.0004999,120]
[356963288,1743503433973,-150.0,0.00049999,120]
[356963289,1743503433982,-66752.84336419,0.0005,62]
[356963290,1743503433992,-500000.0,0.0005,120]
[356963291,1743503434002,-735.44328847,0.000501,2]
[356963292,1743503434012,-155.90118542,0.0005029,120]
[356963293,1743503434022,-1000.0,0.00050355,120]
[356963294,1743503434032,-1888.06036924,0.0005042,15]
[356963295,1743503434041,-3033.95912038,0.00050427,15]
[356963296,1743503434051,-155.90118542,0.00050692,120]
[356963297,1743503434060,-152.5,0.000507,42]
[356963298,1743503434070,-600.0,0.00050716,120]
[356963299,1743503434080,-282.12962368,0.000509,42]
[356963300,1743503434090,-2100.0,0.000509,18]
[356963301,1743503434099,-150.0,0.00050947,2]
[356963302,1743503434108,-1000.0,0.0005099,10]
[356963303,1743503434118,-151.54,0.0005099,120]
[356963304,1743503434129,-150.0,0.00050999,120]
[356963305,1743503434138,-323260.10043635,0.00051,120]
[356963306,1743503434154,-37326.47635501,0.00051,120]
[356963307,1743503434165,-2902.25719,0.00051,120]
[356963308,1743503434177,-17160.53207099,0.00051,120]
[356963309,1743503434188,-9158.46,0.00051,120]
[356963310,1743503434204,-6625.31777006,0.00051,120]
[356963311,1743503434217,-2402.46792901,0.00051,120]
[356963395,1743503440558,-2049.043,0.00042761,2]
[356963396,1743503440568,-283.0103109,0.00043836,120]
[356963397,1743503440579,-2040.0,0.00045761,2]
[356963398,1743503440589,-228.50197158,0.00048699,120]
[356963399,1743503440599,-224.40681016,0.00048699,120]
[356963400,1743503440610,-150.0,0.000509,42]
[356963401,1743503440620,-101164.38824858,0.00051,120]
[356963402,1743503440629,-500.0,0.00051,30]
[356963403,1743503440640,-500.0,0.00051,30]
[356963404,1743503440652,-500.0,0.00051,30]
[356963405,1743503440662,-500.0,0.00051,30]
[356963406,1743503440671,-500.0,0.00051,30]
[356963407,1743503440681,-500.0,0.00051,30]
[356963408,1743503440690,-500.0,0.00051,30]
[356963409,1743503440699,-500.0,0.00051,30]
[356963410,1743503440709,-500.0,0.00051,30]
[356963411,1743503440720,-500.0,0.00051,30]
[356963412,1743503440730,-500.0,0.00051,30]
[356963413,1743503440739,-500.0,0.00051,30]
[356963414,1743503440749,-500.0,0.00051,30]
[356963415,1743503440759,-500.0,0.00051,30]
[356963416,1743503440770,-500.0,0.00051,30]
[356963417,1743503440781,-500.0,0.00051,30]
[356963418,1743503440790,-500.0,0.00051,30]
[356963419,1743503440799,-500.0,0.00051,30]
[356963420,1743503440808,-500.0,0.00051,30]
[356963421,1743503440818,-500.0,0.00051,30]
[356963422,1743503440827,-500.0,0.00051,30]
[356963423,1743503440836,-500.0,0.00051,30]
[356963424,1743503440846,-500.0,0.00051,30]
[356963425,1743503440856,-500.0,0.00051,30]
[356963426,1743503440865,-500.0,0.00051,30]
[356963427,1743503440874,-500.0,0.00051,30]
[356963428,1743503440883,-500.0,0.00051,30]
[356963429,1743503440892,-500.0,0.00051,30]
[356963430,1743503440902,-500.0,0.00051,30]
[356963431,1743503440911,-500.0,0.00051,30]
[356963432,1743503440919,-500.0,0.00051,30]
[356963433,1743503440929,-500.0,0.00051,30]
[356963434,1743503440938,-500.0,0.00051,30]
[356963435,1743503440947,-500.0,0.00051,30]
[356963437,1743503440957,-500.0,0.00051,30]
[356963440,1743503440967,-500.0,0.00051,30]
[356963441,1743503440976,-500.0,0.00051,30]
[356963442,1743503440985,-500.0,0.00051,30]
[356963443,1743503440995,-572.0,0.00051,30]
[356963444,1743503441004,-151.926495,0.00051,120]
[356963445,1743503441014,-151.0,0.00051,120]
[356963446,1743503441023,-151.0,0.00051,120]
[356963447,1743503441032,-151.0,0.00051,120]
[356963448,1743503441041,-151.0,0.00051,120]
[356963449,1743503441051,-151.0,0.00051,120]
[356963450,1743503441060,-1888.06036924,0.00051,15]
[356963451,1743503441070,-151.0,0.00051,120]
[356963452,1743503441080,-151.0,0.00051,120]
[356963453,1743503441089,-151.0,0.00051,120]
[356963454,1743503441099,-151.0,0.00051,120]
[356963455,1743503441109,-151.0,0.00051,120]
[356963456,1743503441119,-151.0,0.00051,120]
[356963457,1743503441139,-151.0,0.00051,120]
[356963458,1743503441150,-151.0,0.00051,120]
[356963459,1743503441159,-151.0,0.00051,120]
[356963460,1743503441169,-3033.95912038,0.00051006,15]
[356963461,1743503441179,-1952.98,0.00051035,30]
[356963462,1743503441188,-1000.0,0.00051085,120]
[356963463,1743503441198,-155.90118542,0.00051095,120]
[356963464,1743503441208,-500.0,0.0005137,120]
[356963465,1743503441218,-500.0,0.0005137,120]
[356963466,1743503441228,-500.0,0.0005137,120]
[356963467,1743503441237,-500.0,0.0005137,120]
[356963468,1743503441247,-461.56278254,0.0005137,120]
[356963469,1743503441256,-204.42,0.000514,7]
[356963470,1743503441266,-155.90118542,0.00051497,120]
[356963471,1743503441276,-1888.06036924,0.0005158,15]
[356963472,1743503441285,-3033.95912038,0.00051584,15]
[356963473,1743503441295,-500.83248115,0.00051632,10]
[356963474,1743503441304,-155.90118542,0.000519,120]
[356963475,1743503441313,-150.0,0.00051999,120]
[356963476,1743503441324,-156048.9295289,0.00052,120]
[356963477,1743503441351,-335433.11297874,0.00052,120]
[356963492,1743503443226,-1353.67819028,0.00052,120]
[356963493,1743503443283,-443.4506406,0.00052,120]
[356963494,1743503443295,-2027.55160291,0.00052,120]